Cogmind - Beta 13 @@@ ROGUE MODE // 2024.03.31 @ 13:48:18 Player: ktur Result: Destroyed by G-47 Trooper with Particle Gun Performance ------------- Evolutions (2) 1000 Regions Visited (7) 1400 Robots Destroyed (86) 430 Value Destroyed (3078) 3078 Prototype IDs (6) 120 Alien Tech Used (0) 0 Bonus (626) 626 TOTAL SCORE: 6654 Bonus ------- High Alert Combat Kills 226 Entered Garrisons 400 Cogmind --------- Core Integrity 0/550 Matter 300/300 Energy 444/530 System Corruption 1% Temperature Warm (110) Movement Treading (235) Ox1 Location -8/Materials Parts ------- > --- POWER (1) -------- Cooled Ion Engine > --- PROPULSION (3) --- Light Treads Light Treads Advanced Treads > --- UTILITY (5) ------ Huge Storage Unit High-capacity Battery Transport Network Coupler Weapon Cycler Hardened Light Armor Plating > --- WEAPON (2) ------- Improved EM Pulse Cannon Minigun > --- INVENTORY (25) --- Micro Nuclear Core Faulty Improved VTOL Module Improved VTOL Module Improved VTOL Module Improved VTOL Module Large Matter Pod (150) Advanced Visual Processing Unit Improved Sensor Array Improved Signal Interpreter Seismic Detector Weapon Cycler Transmission Jammer Improved Power Shielding Hacking Suite Hacking Suite System Shield Rainbow Chip Heavy Assault Rifle Heavy Assault Rifle Gauss Cannon Precision Grenade Launcher Precision Grenade Launcher Plasma Cutter Multitool Katana Peak State ------------ > --- POWER ------------ Light Nuclear Core > --- PROPULSION ------- Light Treads Armored Treads Armored Treads > --- UTILITY ---------- Huge Storage Unit Transport Network Coupler Targeting Computer Hardened Medium Armor Plating Hardlight Generator > --- WEAPON ----------- Precision Grenade Launcher Precision Grenade Launcher > --- INVENTORY -------- Micro Nuclear Core Advanced Treads Gravmag System Gravmag System Gravmag System Large Storage Unit High-capacity Storage Unit Advanced Visual Processing Unit Seismic Detector Weapon Cycler Weapon Cycler Hacking Suite Hacking Suite System Shield Rainbow Chip Beam Rifle Improved EM Pulse Cannon Improved EM Pulse Cannon Improved EM Pulse Cannon Heavy Assault Rifle Enhanced Autogun Improved Light Cannon Plasma Cutter Multitool Katana [Rating: 37] Favorites ----------- Power Improved Ion Engine Engine Improved Ion Engine Power Core Light Nuclear Core Propulsion Light Treads Treads Light Treads Leg Carbon-fiber Leg Wheel Compact Wheel Hover Unit Aerolev Unit Utility Transport Network Coupler Device Seismic Detector Storage Huge Storage Unit Processor Transport Network Coupler Protection Hardened Medium Armor Plating Weapon Enhanced Autogun Energy Gun Beam Rifle Energy Cannon Improved EM Pulse Cannon Ballistic Gun Enhanced Autogun Ballistic Cannon Battle Cannon Launcher Precision Grenade Launcher Special Weapon Plasma Cutter Slashing Weapon Katana Build | -11 -10 -10 -8 -8 -8 -8 -8 ------- Run | Yrd Mat Sub Mat Gar Mat Gar Mat Slots Evolved 4 | . . . 4 . . . . Power . | . . . . . . . . Propulsion 1 | . . . 1 . . . . Utility 3 | . . . 3 . . . . Weapon . | . . . . . . . . Parts Attached 116 | 8 4 10 41 32 1 13 7 Power 8 | 1 1 1 1 2 . 1 1 Engine 6 | 1 1 1 1 . . 1 1 Core 2 | . . . . 2 . . . Reactor . | . . . . . . . . Propulsion 21 | 2 . 2 12 1 . 2 2 Treads 10 | 2 . . 3 1 . 2 2 Leg 8 | . . . 8 . . . . Wheel 2 | . . 2 . . . . . Hover 1 | . . . 1 . . . . Flight . | . . . . . . . . Utility 18 | 2 1 . 11 . 1 1 2 Device 5 | 1 . . 3 . . . 1 Storage 5 | 1 1 . 2 . . 1 . Processor 3 | . . . 3 . . . . Hackware . | . . . . . . . . Protection 5 | . . . 3 . 1 . 1 Artifact . | . . . . . . . . Weapon 69 | 3 2 7 17 29 . 9 2 Energy Gun 6 | 1 1 2 . 2 . . . Energy Cannon 3 | . . . . . . 3 . Ballistic Gun 30 | 2 . 4 11 10 . 2 1 Ballistic Cannon 2 | . . 1 1 . . . . Launcher 8 | . . . 1 6 . . 1 Special Weapon 13 | . 1 . 3 7 . 2 . Impact Weapon . | . . . . . . . . Slashing Weapon 7 | . . . 1 4 . 2 . Piercing Weapon . | . . . . . . . . Special Melee Weapon . | . . . . . . . . Unidentified Prototypes 3 | . . . 3 . . . . Parts Lost 20 | . 1 9 2 3 . 1 4 Power 4 | . 1 1 . 2 . . . Propulsion 9 | . . 3 2 1 . 1 2 Utility 2 | . . . . . . . 2 Weapon 5 | . . 5 . . . . . Highest Loss Streak 4 | . 1 4 1 1 . 1 3 To Critical Strikes 1 | . . . . . . 1 . Average Slot Usage (%) 96 | . 99 91 97 98 100 99 83 Engine 7 | . 13 13 9 1 . 2 9 Core 2 | . . . . 5 9 6 . Treads 20 | . 28 15 12 26 27 26 22 Leg 3 | . . . 12 . . . . Wheel 1 | . . 10 . . . . . Device 10 | . 14 14 12 9 9 9 2 Storage 11 | . 14 14 9 9 9 14 18 Processor 11 | . . . 14 18 18 12 9 Protection 6 | . . . 7 9 9 9 7 Energy Gun 3 | . 13 5 . 5 9 . . Energy Cannon 2 | . . . . . . 10 12 Ballistic Gun 12 | . 14 17 16 10 9 5 2 Naked Turns . | . . . . . . . . Heaviest Build 117 | 13 28 32 106 109 105 117 117 Greatest Support 62 | 40 40 40 60 60 60 60 62 Greatest Overweight (x) 2 | . . 1 2 1 1 2 2 Average Overweight (x) . | . . . . 1 1 1 1 Largest Inventory Capacity 25 | 8 15 15 25 25 25 25 25 Average Capacity 19 | 7 14 15 16 25 25 25 25 Most Carried 25 | 5 8 13 25 25 25 25 25 Average Carried 18 | 3 7 10 16 24 25 24 24 Final Capacity 25 | 8 15 15 25 25 25 25 25 Final Carried 25 | 5 8 9 25 25 25 25 25 Class Distribution -------------------- 61% | Scavenger-Mutant 38% | Mutant Dominant Class ---------------- Mutant | -10/Materials Mutant | -10/Subcaves Scavenger-Mutant | -8/Materials Scavenger-Mutant | -8/Garrison Scavenger-Mutant | -8/Materials Scavenger-Mutant | -8/Garrison Mutant | -8/Materials Resources | -11 -10 -10 -8 -8 -8 -8 -8 ----------- Run | Yrd Mat Sub Mat Gar Mat Gar Mat Matter Collected 2742 | 236 41 202 1042 729 . 408 84 Remotely . | . . . . . . . . Salvage Created 3199 | 114 41 327 1217 529 . 392 579 Parts 203 | 5 6 24 85 30 . 19 34 Haulers Intercepted 5 | . . . 4 . . . 1 Recyclers Shooed 4 | . . . 3 . . . 1 Parts Field Recycled . | . . . . . . . . Retrieved Matter . | . . . . . . . . Parts Self-Destructed 6 | . . 6 . . . . . Prevented . | . . . . . . . . Kills | -11 -10 -10 -8 -8 -8 -8 -8 ------- Run | Yrd Mat Sub Mat Gar Mat Gar Mat Combat Hostiles Destroyed 67 | . 3 7 19 18 . 9 11 Guns 42 | . 3 7 19 8 . 5 . Cannons 11 | . . . . . . 4 7 AOE 13 | . . . . 10 . . 3 Classes Destroyed 14 | 2 1 2 7 2 . . . Worker 6 | . . . 3 . . . 3 Tunneler 2 | 2 . . . . . . . Hauler 5 | . . . 4 . . . 1 Recycler 1 | 1 . . . . . . . Watcher 5 | . . . 4 . . . 1 Swarmer 15 | . 3 . 3 3 . 3 3 Grunt 24 | . . . 7 7 . 3 7 Brawler 2 | . . . . 2 . . . Duelist 3 | . . . 1 2 . . . Sentry 11 | . . . 6 2 . 2 1 Hunter 3 | . . . 2 . . 1 . Programmer 2 | . . . . 2 . . . Artisan 1 | . . 1 . . . . . Subdweller 7 | . . 7 . . . . . Best Kill Streak 8 | 3 3 3 5 8 . 3 6 Combat Bots Only 8 | . 3 3 3 8 . 3 5 Max Kills in Single Turn 3 | 1 1 1 2 3 . 2 3 Gunslinging 1 | . . . . . . 1 . Exploded 3 | . . . . 3 . . 2 Melee . | . . . . . . . . Uniques/NPCs Destroyed . | . . . . . . . . Combat | -11 -10 -10 -8 -8 -8 -8 -8 -------- Run | Yrd Mat Sub Mat Gar Mat Gar Mat Hostile Shots Fired 433 | . 10 48 145 106 . 81 43 Missed 88 | . . 10 32 28 . 15 3 Damage Taken 4720 | . 187 902 1641 899 . 468 623 Core 775 | . 9 209 271 156 . 54 76 Absorbed by Shields 493 | . . . 96 204 . 181 12 Core Remaining (%) 56 | 100 . 12 . . . . . Volleys Fired 267 | 4 11 42 112 45 . 24 29 Largest 2 | 2 2 2 2 2 . 2 2 Hottest 138 | 70 100 90 100 81 . 138 138 Shots Fired 452 | 8 18 64 197 84 . 45 36 Gun 385 | 8 14 64 196 71 . 32 . Cannon 47 | . . . . . . 13 34 Launcher 15 | . . . . 13 . . 2 Special 5 | . 4 . 1 . . . . Kinetic 334 | 4 7 37 196 63 . 27 . Thermal 56 | 4 11 27 1 8 . 5 . Explosive 15 | . . . . 13 . . 2 Electromagnetic 47 | . . . . . . 13 34 Robot Hit Streak 24 | 7 4 23 18 17 . 24 7 Robot Miss Streak 4 | . 3 1 4 2 . 1 2 Penetration Max . | . . . . . . . . Secondary Targets 4 | . 1 . 2 . . 1 . Max Gunslinging Chain 1 | . 1 . 1 . . 1 . Shots Hit Robots 324 | 7 9 57 135 57 . 38 21 Core Hits 148 | 4 4 17 56 36 . 14 17 Critical Kills 1 | . . . 1 . . . . Critical Parts Destroyed . | . . . . . . . . Critical Strikes 6 | 1 1 1 1 . . 1 1 Burn 4 | 1 1 1 . . . 1 . Destroy 1 | . . . 1 . . . . Corrupt 1 | . . . . . . . 1 Melee Attacks 8 | . . . 2 4 . 2 . Impact . | . . . . . . . . Slashing 8 | . . . 2 4 . 2 . Piercing . | . . . . . . . . Sneak Attacks . | . . . . . . . . Combat Hostiles . | . . . . . . . . Follow-up Attacks . | . . . . . . . . Damage Inflicted 7309 | 85 145 870 2065 2104 . 822 1218 Guns 4449 | 84 119 870 1999 882 . 495 . Cannons 986 | . . . . . . 271 715 Explosions 1766 | . . . . 1222 . 43 501 Melee . | . . . . . . . . Ramming 108 | 1 26 . 66 . . 13 2 Kinetic 3839 | 34 40 528 1999 821 . 417 . Thermal 830 | 50 79 342 . 61 . 121 177 Explosive 1546 | . . . . 1222 . . 324 Electromagnetic 986 | . . . . . . 271 715 Impact . | . . . . . . . . Slashing . | . . . . . . . . Piercing . | . . . . . . . . Highest Corruption 1 | . 1 1 1 1 1 1 1 Average Corruption 1 | . 1 1 1 1 1 1 1 Corruption Purged . | . . . . . . . . Corruption Blocked . | . . . . . . . . Effects 47 | . 5 4 8 18 . 8 4 Message Errors 15 | . 1 1 2 6 . 5 . Matter Fused 10 | . 2 2 2 3 . 1 . Heat Flow Errors 5 | . 1 1 1 . . 1 1 Energy Discharges 6 | . 1 . 2 2 . . 1 Data Loss (minor) 4 | . . . 1 2 . . 1 Data Loss (major) 1 | . . . . . . 1 . Misfires 4 | . . . . 4 . . . Weapon Failures 2 | . . . . 1 . . 1 Overload Shots . | . . . . . . . . Overflow Damage 113 | . . . . 36 . . 77 Projectiles 2 | . . . . . . . 2 Explosions 111 | . . . . 36 . . 75 Melee . | . . . . . . . . Knockbacks . | . . . . . . . . Impact . | . . . . . . . . Kinetic . | . . . . . . . . Secondary . | . . . . . . . . Self-Inflicted Damage 92 | . . . 12 48 . 32 . Shots 4 | . . . . 3 . 1 . Rammed 14 | 1 5 . 6 . . 1 1 Targets Rammed 15 | 1 5 . 7 . . 1 1 Kicked 1 | . . . 1 . . . . Crushed . | . . . . . . . . Highest Temperature 372 | 36 87 202 257 217 . 273 372 Average Temperature 67 | 19 20 104 30 41 . 81 150 Received Heat Transfer 1396 | . . 78 608 257 . 135 318 Effects 3 | . . . . . . . 3 Shutdowns 1 | . . . . . . . 1 Energy Bleed 1 | . . . . . . . 1 Interference 1 | . . . . . . . 1 Siege Activations . | . . . . . . . . Robots Corrupted 1 | . . . . . . . 1 Combat Hostiles 1 | . . . . . . . 1 Parts Fried 9 | . . . 2 . . 2 5 Impact Corruptions . | . . . . . . . . Robots Melted . | . . . . . . . . Combat Hostiles . | . . . . . . . . Parts Melted 2 | 1 . . . . . 1 . Heat Transferred 1878 | 222 296 902 . 148 . 210 100 Parts Sabotaged . | . . . . . . . . Parts Stolen . | . . . . . . . . Parts Stripped . | . . . . . . . . Power Chain Reactions 1 | . . . . . . 1 . Alert | -11 -10 -10 -8 -8 -8 -8 -8 ------- Run | Yrd Mat Sub Mat Gar Mat Gar Mat Peak Influence 782 | 15 63 . 247 782 395 556 732 Initial 380 | . 9 . . 89 380 259 271 Average 277 | 5 29 . 77 491 380 441 573 Maximum Alert Level 3 | . . . 1 3 1 2 3 Low Security (%) 50 | 100 100 . 97 6 . . . Level 1 14 | . . . 2 24 100 26 21 Level 2 26 | . . . . 53 . 73 38 Level 3 7 | . . . . 15 . . 40 Level 4 . | . . . . . . . . Level 5 . | . . . . . . . . High Security . | . . . . . . . . Max Security . | . . . . . . . . Squads Dispatched 9 | . . . 5 . . . 4 Investigation 2 | . . . 2 . . . . Extermination . | . . . . . . . . Reinforcement 3 | . . . 1 . . . 2 Assault 1 | . . . . . . . 1 Garrison 3 | . . . 2 . . . 1 Intercept . | . . . . . . . . Searches Triggered . | . . . . . . . . Construction Impeded . | . . . . . . . . Haulers Reinforced . | . . . . . . . . Active Scanning Responses . | . . . . . . . . Cargo Convoy Interrupts . | . . . . . . . . Stealth | -11 -10 -10 -8 -8 -8 -8 -8 --------- Run | Yrd Mat Sub Mat Gar Mat Gar Mat Distress Signals 2 | . . . 1 . . . 1 Communications Jammed . | . . . . . . . . Distress Signals . | . . . . . . . . Times Spotted 98 | . 8 7 35 19 1 13 15 Peak Tracking Total 6 | . 4 3 4 6 4 4 4 Tactical Retreats 8 | . . . 2 1 . 4 1 Traps | -11 -10 -10 -8 -8 -8 -8 -8 ------- Run | Yrd Mat Sub Mat Gar Mat Gar Mat Traps Triggered 8 | . 2 2 2 . . 2 . Indirectly . | . . . . . . . . Trap Hack Attempts . | . . . . . . . . Triggered . | . . . . . . . . Disarmed . | . . . . . . . . Reprogrammed 4 | . . . 4 . . . . Reused 4 | . . . 4 . . . . Traps Extracted . | . . . . . . . . Installed . | . . . . . . . . Triggered 4 | . . . 4 . . . . Most Traps Carried 1 | . . 1 1 . . . . Machines | -11 -10 -10 -8 -8 -8 -8 -8 ---------- Run | Yrd Mat Sub Mat Gar Mat Gar Mat Machines Disabled 9 | . . . 2 3 . . 4 Max in Single Turn 2 | . . . 1 1 . . 2 Garrison Access 1 | . . . . . . . 1 Garrison Relay 5 | . . . . 4 . 1 . Phase Generator 1 | . . . . 1 . . . Machines Repaired . | . . . . . . . . Machines Dismantled 8 | . . . . 6 . 2 . Machines Sabotaged . | . . . . . . . . Overloaded Fab Kills . | . . . . . . . . Hacking | -11 -10 -10 -8 -8 -8 -8 -8 --------- Run | Yrd Mat Sub Mat Gar Mat Gar Mat Machines Accessed 15 | . 2 1 8 2 2 . . Terminals 11 | . 2 . 6 2 1 . . Fabricators . | . . . . . . . . Repair Stations . | . . . . . . . . Recycling Units . | . . . . . . . . Scanalyzers 1 | . . . 1 . . . . Garrison Access 2 | . . . 1 . 1 . . Total Hacks 46 | . 6 3 29 5 3 . . Successful 28 | . 3 3 19 2 1 . . Failed 18 | . 3 . 10 3 2 . . Catastrophic 6 | . 2 . 3 . 1 . . Database Lockouts . | . . . . . . . . Manual 21 | . 4 . 13 2 2 . . Terminals 30 | . 6 . 17 5 2 . . Fabricators . | . . . . . . . . Repair Stations . | . . . . . . . . Recycling Units . | . . . . . . . . Scanalyzers 11 | . . . 11 . . . . Garrison Access 2 | . . . 1 . 1 . . Terminal Hacks 13 | . 2 3 7 1 . . . Record 3 | . . 3 . . . . . Part Schematic 2 | . . . 2 . . . . Robot Analysis 2 | . 1 . 1 . . . . Prototype ID Bank 1 | . 1 . . . . . . Unreport Threat 2 | . . . 2 . . . . Locate Traps 1 | . . . 1 . . . . Reprogram Traps 1 | . . . 1 . . . . Garrison Registry 1 | . . . . 1 . . . Fabricator Hacks . | . . . . . . . . Repair Station Hacks . | . . . . . . . . Recycling Unit Hacks . | . . . . . . . . Scanalyzer 9 | . . . 9 . . . . Insert Component 5 | . . . 5 . . . . Analyze 4 | . . . 4 . . . . Garrison Access Hacks 2 | . . . 1 . 1 . . Unlock Access 2 | . . . 1 . 1 . . Unauthorized Hacks 4 | . 1 . 2 1 . . . Terminals 4 | . 1 . 2 1 . . . Botnet 3 | . 1 . 1 1 . . . Operators 1 | . . . 1 . . . . Fabricators . | . . . . . . . . Repair Stations . | . . . . . . . . Recycling Units . | . . . . . . . . Scanalyzers . | . . . . . . . . Garrison Access . | . . . . . . . . Data Cores Recovered . | . . . . . . . . Used . | . . . . . . . . Hacking Detections 12 | . 2 . 6 2 2 . . Full Trace Events 4 | . . . 3 1 . . . Feedback Events 1 | . . . 1 . . . . Corruption 1 | . . . 1 . . . . Feedback Blocked . | . . . . . . . . Robot Schematics Acquired . | . . . . . . . . Robots Built . | . . . . . . . . Authchips . | . . . . . . . . Time . | . . . . . . . . Total Robot Build Rating . | . . . . . . . . Part Schematics Acquired 6 | . . . 6 . . . . Parts Built . | . . . . . . . . Authchips . | . . . . . . . . Time . | . . . . . . . . Total Part Build Rating . | . . . . . . . . Parts Repaired . | . . . . . . . . Time . | . . . . . . . . Parts Recycled . | . . . . . . . . Recycled Matter . | . . . . . . . . Retrieved Matter . | . . . . . . . . Retrieved Components . | . . . . . . . . Parts Scanalyzed 4 | . . . 4 . . . . Part Schematics Acquired 4 | . . . 4 . . . . Parts Damaged . | . . . . . . . . Bothacking | -11 -10 -10 -8 -8 -8 -8 -8 ------------ Run | Yrd Mat Sub Mat Gar Mat Gar Mat Used RIF Installer . | . . . . . . . . Robots Hacked . | . . . . . . . . Non-combat . | . . . . . . . . Combat . | . . . . . . . . Robot Hacks Applied . | . . . . . . . . Relay Couplers Released 22 | . . . . 17 . 3 2 Machine Destruction 22 | . . . . 17 . 3 2 Fabnet Peak Effective % . | . . . . . . . . Robots Rewired . | . . . . . . . . Allies Hacked . | . . . . . . . . Hacks Repelled . | . . . . . . . . Allies | -11 -10 -10 -8 -8 -8 -8 -8 -------- Run | Yrd Mat Sub Mat Gar Mat Gar Mat Total Allies . | . . . . . . . . Largest Group . | . . . . . . . . Highest-Rated Group . | . . . . . . . . Highest-Rated Ally . | . . . . . . . . Total Orders . | . . . . . . . . Ally Attacks . | . . . . . . . . Total Damage . | . . . . . . . . Kills . | . . . . . . . . Allies Corrupted . | . . . . . . . . Allies Melted . | . . . . . . . . Intel | -11 -10 -10 -8 -8 -8 -8 -8 ------- Run | Yrd Mat Sub Mat Gar Mat Gar Mat Robot Analysis Total 2 | . 1 . 1 . . . . Derelict Logs Recovered . | . . . . . . . . Drone Launches . | . . . . . . . . Drone Recoveries . | . . . . . . . . Exploration | -11 -10 -10 -8 -8 -8 -8 -8 ------------- Run | Yrd Mat Sub Mat Gar Mat Gar Mat Turns Passed 6094 | 116 771 692 1793 1418 119 658 527 Spaces Moved 2569 | 56 353 430 867 469 47 192 155 Core 3 | 3 . . . . . . . Treads 1746 | 53 353 154 323 469 47 192 155 Legs 470 | . . . 470 . . . . Wheels 350 | . . 276 74 . . . . Hover . | . . . . . . . . Flight . | . . . . . . . . Fastest Speed 50 | 50 160 100 115 246 246 240 235 Average Speed 182 | 154 160 128 150 247 246 241 277 Slowest Speed 325 | 160 160 240 260 250 246 325 320 Overloaded Moves . | . . . . . . . . Propulsion Burnouts . | . . . . . . . . Robots Hopped . | . . . . . . . . Cave-ins Triggered . | . . . . . . . . Exploration Rate (%) 37 | 5 59 35 73 66 8 31 20 Regions Visited 7 Branch Regions 1 Pre-discovered Areas . | . . . . . . . . Known Exits Taken 2 | . . . 1 . 1 . . Unknown Exits Taken 3 | 1 1 1 . . . . . Scrap Searched 1 | . . 1 . . . . . Spaces Dug 17 | . 3 . 3 . . . 11 Terrain Destroyed 129 | . 3 . 4 83 . 7 32 Melee 2 | . . . 2 . . . . Projectile 5 | . 3 . 2 . . . . AOE 122 | . . . . 83 . 7 32 Terrain Rammed . | . . . . . . . . Walls Destroyed . | . . . . . . . . Machines Disabled . | . . . . . . . . Actions | -11 -10 -10 -8 -8 -8 -8 -8 --------- Run | Yrd Mat Sub Mat Gar Mat Gar Mat Total 3474 | 74 529 503 1176 599 50 328 215 Wait 337 | . 153 13 76 6 . 81 8 Move 2564 | 55 352 429 867 468 47 191 155 Hop . | . . . . . . . . Pick Up 70 | 6 3 9 33 10 . 2 7 Fast Attach 39 | 6 1 . 21 1 1 5 4 Attach 18 | 1 . 8 4 3 . . 2 Detach 4 | . . . 1 . 1 1 1 Swap 59 | 1 3 2 16 28 . 8 1 Drop 58 | . 1 . 35 8 1 6 7 Fire 267 | 4 11 42 112 45 . 24 29 Melee 8 | . . . 2 4 . 2 . Ram 2 | . . . 2 . . . . Kick 1 | . . . 1 . . . . Crush 12 | 1 5 . 4 . . 1 1 Escape Stasis . | . . . . . . . . Rewire . | . . . . . . . . Trap . | . . . . . . . . Miscellaneous 35 | . . . 2 26 . 7 . Route ------- -11/Scrapyard -10/Materials (discovered 3 exits: [*Mat] / [*Min] / *Sub) -10/Subcaves -8/Materials (discovered 3 exits: [*Fac x2] / Gar) -8/Garrison (discovered 3 exits: *Mat x3) -8/Materials -8/Garrison -8/Materials History --------- Turn | Location | Event 12 | -11/Scrapyard | Discovered new exit (range 15) 117 | -11/Scrapyard | Entered Materials 302 | -10/Materials | Build established: Mutant 411 | -10/Materials | Discovered new exit (range 8) 660 | -10/Materials | Discovered new exit (range 14) 864 | -10/Materials | Discovered new exit (range 5) 888 | -10/Materials | Entered Subcaves 1006 | -10/Subcaves | Visited Clippyterm 1071 | -10/Subcaves | Shifting Twisted Machinery released Shrapnel Trap 1158 | -10/Subcaves | A Subdweller sparked back to life 1158 | -10/Subcaves | A Subdweller sparked back to life 1194 | -10/Subcaves | Found Prototype Processor 1210 | -10/Subcaves | Shifting Twisted Machinery released Sub. Optics 1254 | -10/Subcaves | Build established: Scavenger-Mutant 1257 | -10/Subcaves | Core integrity fell below 50% 1351 | -10/Subcaves | Ambushed by angry Subdweller bent on revenge 1399 | -10/Subcaves | Lost 3 parts (1n2w) 1481 | -10/Subcaves | Ambushed by Subdweller buried in earth 1504 | -10/Subcaves | Core integrity fell below 20% 1532 | -10/Subcaves | Lost 4 parts (1p1n2w) 1550 | -10/Subcaves | Shifting Twisted Machinery released Battle Cannon 1567 | -10/Subcaves | Discovered new exit (range 5) 1577 | -10/Subcaves | Build established: Mutant 1580 | -10/Subcaves | Entered Materials 1580 | -8/Materials | Evolved 4 slots: Propulsion x1, Utility x3 1633 | -8/Materials | Identified Rainbow Chip 2100 | -8/Materials | Build established: Scavenger-Mutant 2149 | -8/Materials | Discovered new exit (range 16) 2450 | -8/Materials | Discovered new exit (range 4) 3260 | -8/Materials | Garrison activated, responded to threat 3373 | -8/Materials | Identified exit to Garrison 3373 | -8/Materials | Entered Garrison 3436 | -8/Garrison | Core integrity fell below 50% 3460 | -8/Garrison | Discovered new exit (range 56) 3460 | -8/Garrison | Discovered new exit (range 74) 3460 | -8/Garrison | Discovered new exit (range 37) 3510 | -8/Garrison | Garrison Relay disabled 3600 | -8/Garrison | Build established: Mutant 3663 | -8/Garrison | Triggered checkpoint 3718 | -8/Garrison | Destroyed 8 combat bots 3950 | -8/Garrison | Triggered checkpoint 4002 | -8/Garrison | Garrison Relay disabled 4100 | -8/Garrison | Build established: Scavenger-Mutant 4113 | -8/Garrison | Triggered checkpoint 4294 | -8/Garrison | Garrison Relay disabled 4441 | -8/Garrison | Phase Generator disabled 4460 | -8/Garrison | Spotted B-75 Beast 4791 | -8/Garrison | Entered Materials 4910 | -8/Materials | Identified exit to Garrison 4910 | -8/Materials | Entered Garrison 4988 | -8/Garrison | Triggered checkpoint 5054 | -8/Garrison | Garrison Relay disabled 5085 | -8/Garrison | Core integrity fell below 20% 5326 | -8/Garrison | Triggered checkpoint 5522 | -8/Garrison | Triggered checkpoint 5539 | -8/Garrison | Spotted B-75 Beast 5558 | -8/Garrison | Discovered new exit (range 5) 5568 | -8/Garrison | Entered Materials 5670 | -8/Materials | Garrison activated, responded to threat 5744 | -8/Materials | Lost 3 parts (1n2u) 6050 | -8/Materials | Build established: Mutant 6095 | -8/Materials | Destroyed by G-47 Trooper with Particle Gun Last Messages --------------- 06053_ Acquired Prototype Flight Unit. 06054_ Dropped Imp. Light Cannon. 06055_ Acquired 10 matter. 06059_ R-06 Scavenger collects Lgt. Armor Plating. 06064_ Acquired Prototype Flight Unit. 06068_ G-47 Trooper destroyed. 06069_ R-06 Scavenger collects Aluminum Leg. 06073_ R-06 Scavenger collects Imp. Heat Sink. 06075_ G-47 Trooper misfires. 06076_ R-06 Scavenger collects Corrupted Lgt. Nuclear Core. 06077_ G-47 Trooper IFF system glitched. 06078_ G-47 Trooper system terminally corrupted. 06078_ Particle Gun fried. 06078_ Imp. Heat Sink fried. 06079_ R-06 Scavenger collects Corrupted Aluminum Leg. 06080_ Acquired Prototype Flight Unit. 06083_ Dropped Flight Unit. 06084_ Acquired Prototype Flight Unit. 06085_ Acquired 10 matter. 06093_ Material Compactor disabled. Map ----- +----------------------------------------------------+ | | | | | | | | | | | | | | | | | | | | | | | | | | | | | ???????????????????????????????????###########???? | | ???????????????????????????????????# !! ] ##### | | ???????????????????????????????????# !! ## | | ???????????????????????????????????? !! ??# | | ?????????????????????????????????????? "T????#! | | ??????????????????###################+##+####### | | ??????????????????# ] ![[+%]=! !% + | | ??????????????????# """=[#### [#####+## ### | | ??????????????????#= """"" #??# #??? # ## | | ??????????????????# """""%#??# +??? ! # | | ??????????????????+ """" g#??#########??] #### | | ??????????????????# """@ #????????????? ! #???# | | ??????????????????#! !#????????????[ #???# | | ??????????????????# * #???????????? #???# | | ??????????????????# r! #???????????#######???# | | ??????????????????###+######?????????????????????# | | ??????????????????? ???????????????????????????? | | ?????????????????? ????????????????????????????? | | ????????????????? ?????????????????????????????? | | ???????????????? ??????????????????????????????? | | ??????????????? ???????????????????????????????? | | ???????????????" ????????????????????????????????? | | ????????????????????????????????????????????????## | | ??????????????????????????????????????????????+ | | ????????????????????????????????????????????????## | | ?????????????????????????????????????????????????? | | ?????????????????????????????????????????????????? | | ?????????????????????????????????????????????????? | | ?????????????????????????????????????????????????? | | ?????????????????????????????????????????????????? | | ?????????????????????????????????????????????????? | | ?????????????????????????????????????????????????? | | ?????????????????????????????????????????????????? | | ?????????????????????????????????????????????????? | | ?????????????????????????????????????????????????? | | ?????????????????????????????????????????????????? | +----------------------------------------------------+ Best States ------------- Heat Dissipation 31 Coolant Potential 50 Energy Generation 18 Energy Capacity 530 Matter Stores 300 Matter Capacity 300 Sight Range 16 Terrain Scan Density 110 Armor Coverage 225 Weapon Cycling 15 Evasion (%) 55 Targeting Accuracy 5 Recoil Reduction 3 Item Schematics ----------------- Multitool | -8/Materials | Scanalyzed Huge Storage Unit | -8/Materials | Scanalyzed Hcp. Storage Unit | -8/Materials | Scanalyzed System Shield | -8/Materials | Scanalyzed Imp. Utility Shielding | -8/Materials | Hacked Imp. Propulsion Shielding | -8/Materials | Hacked Robot Schematics ------------------ None Fabricated ------------ Nothing Alien Tech Used ----------------- None Achievements -------------- None Challenges ------------ None Game ------ Seed ReflectiveGreatPerforator Manual? 0 Play Time 00:36:43 Cumulative 764.1 hours Start 2024.03.31 @ 13:12:21 End 2024.03.31 @ 13:48:18 Sessions 1 Manual Loads 0 Difficulty Rogue Special Mode None Game No. 711 Rogue 711 Adventurer 0 Explorer 0 Win Type - Total 39 Types 14/4/11/2/0/0/5/2/1 Lore% 94 Gallery% 95 Achievement% 84 Wizard Run 0 Options --------- Layout 0 ASCII 0 Keyboard 0 Movement Numpad Keybinds 0 Fullscreen 1 Font 18/Smallcaps Map View 76x50 Zoom Use 0% Tactical HUD 1 Map Filters NONE Filters NONE Steam 1 RUN: a4cfe924-90d3-448f-83d8-261eb99dedef